bitfinex-derivatives/quotes_ETHF0:USTF0_20250123
["timestamp","ask_amount","ask_price","bid_price","bid_amount"]
[1737613209470,0.62212,3216.9,3216.8,0.62212]
[1737613209670,0.62214,3216.8,3216.7,0.62214]
[1737613210170,0.62215,3216.7,3216.6,41.42216]
[1737613210371,1.78935,3216.7,3216.6,41.42216]
[1737613210570,1.1672,3216.7,3216.6,41.42216]
[1737613211569,0.6221,3217.0,3216.6,40.8]
[1737613211770,0.62212,3216.9,3216.8,0.62213]
[1737613212067,0.5875,3217.0,3216.6,40.8]
[1737613212368,0.62211,3216.9,3216.7,0.62213]
[1737613212566,0.5875,3217.0,3216.7,0.62213]
[1737613212768,0.62213,3216.8,3216.7,0.62213]
[1737613213272,0.62215,3216.7,3216.6,40.8]
[1737613214570,0.62215,3216.7,3216.6,41.42217]
[1737613214972,0.62215,3216.7,3216.6,40.8]
[1737613215271,0.62215,3216.7,3216.6,41.42217]
[1737613217668,0.62215,3216.7,3216.6,40.8]
[1737613218765,0.62215,3216.7,3216.6,41.42217]
[1737613219272,3.03663556,3217.0,3216.6,40.8]
[1737613219467,0.62215,3216.7,3216.6,41.42216]
[1737613219868,0.62215,3216.7,3216.6,40.8]
[1737613223173,3.07128556,3216.7,3216.6,40.8]
[1737613225074,2.44913556,3216.7,3216.6,40.8]
[1737613225277,3.82992,3216.9,3216.6,41.42216]
[1737613225480,3.82992,3216.9,3216.7,0.62215]
[1737613225672,0.62212,3216.9,3216.7,0.62215]
[1737613226081,0.62212,3216.9,3216.6,41.42216]
[1737613226472,0.62214,3216.8,3216.6,40.8]
[1737613226969,0.62214,3216.8,3216.6,41.42216]
[1737613228182,6.24443556,3217.0,3216.6,41.42216]
[1737613228380,0.62212,3216.9,3216.6,41.42216]
[1737613228885,0.62215,3216.7,3216.6,40.8]
[1737613229675,0.62214,3216.8,3216.6,40.8]
[1737613230278,0.5875,3217.0,3216.6,40.8]
[1737613230781,0.5875,3217.0,3216.9,0.62211]
[1737613231379,0.5875,3217.0,3216.9,41.42211]
[1737613232781,1.1426,3217.1,3217.0,0.62209]
[1737613232975,0.5842,3217.1,3217.0,0.62209]
[1737613234777,1.20627,3217.1,3217.0,0.62209]
[1737613235584,0.5842,3217.1,3217.0,0.62209]
[1737613235778,1.20627,3217.1,3217.0,0.62209]
[1737613236183,0.5842,3217.1,3217.0,0.62209]
[1737613237478,1.20627,3217.1,3217.0,0.62209]
[1737613237687,0.5842,3217.1,3217.0,0.62209]
[1737613237882,1.20627,3217.1,3217.0,0.62209]
[1737613238685,0.5842,3217.1,3217.0,0.62209]
[1737613239078,1.20627,3217.1,3217.0,0.62209]
[1737613239995,0.5842,3217.1,3217.0,0.62209]
[1737613241685,1.20627,3217.1,3217.0,0.62209]
[1737613242185,0.5842,3217.1,3217.0,0.62209]
[1737613242787,1.20627,3217.1,3217.0,0.62209]
[1737613244185,0.62209,3217.0,3216.9,44.0078]
[1737613244490,1.17029,3217.0,3216.9,44.0078]
[1737613245488,1.17029,3217.0,3216.9,44.62991]
[1737613245685,0.5842,3217.1,3216.9,44.0078]
[1737613245890,0.5842,3217.1,3217.0,0.62209]
[1737613248094,0.00466295,3217.2,3217.1,0.62207]
[1737613248692,0.00466295,3217.2,3217.1,41.95467]
[1737613251695,0.00466295,3217.2,3217.1,42.41159304]
[1737613255793,0.00466295,3217.2,3217.1,42.64753616]
[1737613260906,0.00466295,3217.2,3217.1,43.37871352]
[1737613261103,0.00466295,3217.2,3217.1,42.19061312]
[1737613261412,0.00466295,3217.2,3217.1,43.37879123]
[1737613261805,1.1324,3217.7,3217.6,0.62197]
[1737613262112,1.1324,3217.7,3217.6,3.82977]
[1737613262510,1.1324,3217.7,3217.6,44.62977]
[1737613263211,0.5451,3217.8,3217.7,0.62196]
[1737613263910,1.16704,3217.8,3217.7,0.62196]
[1737613264515,1.74724,3217.8,3217.7,0.62196]
[1737613266721,1.1253,3217.8,3217.6,44.0078]
[1737613266913,0.62195,3217.7,3217.6,44.0078]
[1737613267911,0.62195,3217.7,3217.6,44.62977]
[1737613268512,0.62195,3217.7,3217.6,44.0078]
[1737613269822,1.78260391,3217.7,3217.6,44.0078]
[1737613273520,1.78260391,3217.7,3217.6,40.8]
[1737613275322,1.83174656,3217.7,3217.6,40.8]
[1737613279321,2.24731942,3217.7,3217.6,40.8]
[1737613282329,1.78261391,3217.7,3217.6,40.8]
[1737613285427,1.16065391,3217.7,3217.6,40.8]
[1737613285729,0.62194,3217.8,3217.7,0.62196]
[1737613285925,0.5423,3217.7,3217.6,41.42196]
[1737613286734,1.16426,3217.7,3217.6,40.8]
[1737613286927,1.16426,3217.7,3217.6,41.42197]
[1737613287632,1.16426,3217.7,3217.6,40.8]
[1737613289432,1.15074,3217.8,3217.7,0.62196]
[1737613291129,1.15074,3217.8,3217.7,1.20336]
[1737613291435,1.15074,3217.8,3217.7,0.5814]
[1737613291827,1.15074,3217.8,3217.7,1.20336]
[1737613293437,1.15074,3217.8,3217.7,0.5814]
[1737613294825,1.15074,3217.8,3217.7,1.20336]
[1737613297626,1.15074,3217.8,3217.7,0.5814]
[1737613297830,2.31139391,3217.8,3217.7,0.5814]
[1737613298125,0.62657295,3218.0,3217.7,0.5814]
[1737613298325,0.62657295,3218.0,3217.8,0.62194]
[1737613298531,0.62657295,3218.0,3217.9,40.8]
[1737613299538,0.00466295,3218.0,3217.9,40.8]
[1737613299727,0.00466295,3218.0,3217.9,41.42192]
[1737613302735,0.00466295,3218.0,3217.9,40.8]
[1737613302934,1.78721686,3218.0,3217.9,40.8]
[1737613307434,0.62656295,3218.0,3217.9,40.8]
[1737613325850,0.00466295,3218.0,3217.9,44.62971]
[1737613326154,0.00466295,3218.0,3217.9,44.98891]
[1737613326350,0.00466295,3218.0,3217.9,44.62971]
[1737613326855,0.57776295,3218.0,3217.9,44.62971]
[1737613327056,1.11966295,3218.0,3217.9,44.62971]
[1737613330953,0.57776295,3218.0,3217.9,44.62971]
[1737613331152,0.00466295,3218.0,3217.9,44.98891]
[1737613331349,3.2078,3219.0,3217.9,46.14956391]
[1737613331557,0.62173,3218.8,3218.7,0.62174]
[1737613331751,3.2078,3219.0,3218.8,0.62173]
[1737613331752,13.93300828,3218.9,3218.8,0.62173]
[1737613331952,13.93300828,3218.9,3218.8,41.42173]
[1737613332455,14.55471828,3218.9,3218.8,41.42173]
[1737613332957,14.55471828,3218.9,3218.8,40.8]
[1737613333154,15.10101828,3218.9,3218.8,40.8]
[1737613333959,1.72221,3218.9,3218.8,40.8]
[1737613334551,2.29001,3218.9,3218.8,40.8]
[1737613336959,1.6683,3218.9,3218.8,41.42173]
[1737613338653,1.122,3218.9,3218.8,41.42173]
[1737613340062,0.62168,3219.1,3218.9,0.6217]
[1737613340362,0.62168,3219.1,3218.8,41.96065391]
[1737613340363,0.559,3219.1,3218.8,41.96065391]
[1737613340564,0.559,3219.1,3219.0,0.62169]
[1737613340763,0.559,3219.1,3219.0,1.78234391]
[1737613341066,0.00466295,3219.2,3219.1,0.62167]
[1737613341266,0.00466295,3219.2,3219.1,1.14827]
[1737613341465,1.16531686,3219.2,3218.9,0.5169]
[1737613341664,0.5381,3219.1,3219.0,0.62169]
[1737613343266,0.00466295,3219.2,3218.9,0.5169]
[1737613343568,0.00466295,3219.2,3219.1,0.62167]
[1737613344161,0.00466295,3219.2,3219.1,41.42167]
[1737613344762,0.00466295,3219.2,3219.1,41.96147]
[1737613345760,1.6251,3219.6,3219.1,41.3398]
[1737613345963,13.37880828,3219.7,3219.5,1.16065391]
[1737613346165,13.37880828,3219.7,3219.6,1.66548]
[1737613347063,13.37880828,3219.7,3219.6,1.0439]
[1737613347254,13.37880828,3219.7,3219.6,1.66548]
[1737613347456,1.70313,3219.9,3219.6,1.66548]
[1737613347655,1.70313,3219.9,3219.8,1.16065391]
[1737613347860,1.70313,3219.9,3219.6,1.66548]
[1737613347861,1.70313,3219.9,3219.6,2.82613391]
[1737613348370,1.70313,3219.9,3219.8,40.8]
[1737613349871,0.6216,3219.5,3219.4,3.2078]
[1737613350371,0.6216,3219.5,3219.4,44.0078]
[1737613350573,1.1431,3219.5,3219.4,44.0078]
[1737613351468,1.1431,3219.5,3219.4,40.8]
[1737613352672,1.19221085,3219.5,3219.4,40.8]
[1737613354573,1.1431,3219.5,3219.4,40.8]
[1737613355473,0.5215,3219.5,3219.4,40.8]
[1737613356061,0.5215,3219.5,3219.4,42.58227391]
[1737613356265,1.0816,3219.9,3219.7,0.62155]
[1737613356465,1.0816,3219.9,3219.6,1.78221391]
[1737613356671,1.0816,3219.9,3219.7,0.62155]
[1737613356871,1.0816,3219.9,3219.8,40.8]
[1737613357076,2.22442,3219.9,3219.8,40.8]
[1737613357572,1.6029,3219.9,3219.8,40.8]
[1737613358568,1.6029,3219.9,3219.8,41.42154]
[1737613358764,0.00466295,3220.0,3219.9,0.62152]
[1737613358964,0.00466295,3220.0,3219.8,40.8]
[1737613359872,0.00466295,3220.0,3219.8,41.42154]
[1737613360763,0.62616295,3220.0,3219.8,41.42154]
[1737613360973,0.62616295,3220.0,3219.8,40.8]
[1737613361574,0.62617295,3220.0,3219.8,40.8]
[1737613364071,0.00466295,3220.0,3219.8,40.8]
[1737613364277,0.62152,3219.9,3219.8,40.8]
[1737613364478,0.62617295,3220.0,3219.8,40.8]
[1737613365176,0.00466295,3220.0,3219.8,41.42153]
[1737613365373,0.00466295,3220.0,3219.8,40.8]
[1737613365568,0.00466295,3220.0,3219.8,41.42153]
[1737613366380,0.00466295,3220.0,3219.8,40.8]
[1737613366584,0.00466295,3220.0,3219.9,0.62152]
[1737613367980,0.00466295,3220.0,3219.9,1.09752]
[1737613369686,0.00466295,3220.0,3219.9,41.89752]
[1737613369880,0.6214,3220.6,3220.4,0.62142]
[1737613370977,0.62142,3220.4,3220.3,3.2078]
[1737613373676,0.6215,3220.0,3219.9,44.0078]
[1737613377187,0.6215,3220.0,3219.9,40.8]
[1737613381889,1.78055198,3220.0,3219.9,40.8]
[1737613387684,4.98835198,3220.0,3219.9,40.8]
[1737613389289,1.78055198,3220.0,3219.9,40.8]
[1737613393596,2.98870445,3220.0,3219.9,40.8]
[1737613393894,7.03140515,3220.0,3219.9,40.8]
[1737613394094,7.44625405,3220.0,3219.9,40.8]
[1737613394588,10.65405405,3220.0,3219.9,40.8]
[1737613396390,10.6540494,3220.0,3219.9,40.8]
[1737613398095,10.65404878,3220.0,3219.9,40.8]
[1737613399100,10.65373993,3220.0,3219.9,40.8]
[1737613399301,10.23919988,3220.0,3219.9,40.8]
[1737613399599,10.65371937,3220.0,3219.9,40.8]
[1737613400000,10.65372247,3220.0,3219.9,40.8]
[1737613400600,9.08015081,3220.0,3219.9,40.8]
[1737613400801,9.49475822,3220.0,3219.9,40.8]
[1737613401202,10.6538102,3220.0,3219.9,40.8]
[1737613403006,9.49475822,3220.0,3219.9,40.8]
[1737613403204,9.4947592,3220.0,3219.9,40.8]
[1737613404204,0.6216,3219.5,3219.3,3.68816295]
[1737613404499,0.62162,3219.4,3219.3,3.68816295]
[1737613404699,0.62162,3219.4,3219.3,40.80466295]
[1737613404904,2.19802,3219.4,3219.3,0.00466295]
[1737613405297,12.52973946,3219.4,3219.3,0.00466295]
[1737613405598,0.62169,3219.0,3218.9,40.8]
[1737613405902,2.98888821,3219.0,3218.9,40.8]
[1737613406093,1.82983623,3219.0,3218.9,40.8]
[1737613408601,6.9444219,3219.0,3218.9,40.8]
[1737613409012,5.78536992,3219.0,3218.9,40.8]
[1737613409717,7.07663091,3219.0,3218.9,40.8]
[1737613416417,7.02753666,3219.0,3218.9,40.8]
[1737613416612,7.07665628,3219.0,3218.9,40.8]
[1737613421622,7.07665583,3219.0,3218.9,40.8]
[1737613421822,7.07665564,3219.0,3218.9,40.8]
[1737613422725,0.62171,3218.7,3218.6,0.00466295]
[1737613422925,3.07202297,3218.7,3218.6,0.00466295]
[1737613423119,7.18929261,3218.7,3218.6,40.80466295]
[1737613423519,7.18929261,3218.7,3218.6,0.00466295]
[1737613424019,7.74899261,3218.7,3218.6,40.80466295]
[1737613424421,7.74899261,3218.7,3218.6,0.00466295]
[1737613425119,7.18929261,3218.7,3218.6,0.00466295]
[1737613430529,3.2078,3218.8,3218.6,0.00466295]
[1737613430729,3.2078,3218.8,3218.6,0.11346295]
[1737613430929,3.2078,3218.8,3218.7,40.8]
[1737613431124,3.2078,3218.8,3218.7,41.3566]
[1737613431918,3.82949,3218.8,3218.7,41.3566]
[1737613435732,0.62169,3218.8,3218.7,41.3566]
[1737613439639,1.78150969,3218.8,3218.7,41.3566]
[1737613441333,0.62169,3218.8,3218.7,41.3566]
[1737613441532,0.00466295,3219.0,3218.7,41.3566]
[1737613441732,0.00466295,3219.0,3218.9,4.98928969]
[1737613442232,0.00466295,3219.0,3218.9,5.46438969]
[1737613442431,0.00466295,3219.0,3218.9,46.26438969]
[1737613442634,12.18310618,3219.1,3218.9,50.64271969]
[1737613442834,12.18310618,3219.1,3219.0,0.62165]
[1737613443234,12.18310618,3219.1,3219.0,5.62165]
[1737613443538,12.18310618,3219.1,3219.0,46.42165]
[1737613444435,3.83516564,3219.1,3219.0,46.42165]
[1737613444637,0.99102089,3219.1,3219.0,46.42165]
[1737613444844,13.37880828,3219.9,3219.0,46.42165]
[1737613444845,13.37880828,3219.9,3219.8,0.62149]
[1737613445035,0.62142,3220.2,3220.0,0.62145]
[1737613445435,0.62141,3220.3,3220.1,40.8]
[1737613445738,13.64352917,3220.5,3220.1,40.8]
[1737613445941,0.62142,3220.2,3220.1,40.8]
[1737613446849,0.62138,3220.4,3220.1,41.42142]
[1737613447036,13.64817956,3220.5,3220.1,41.42142]
[1737613447235,0.62141,3220.3,3220.1,40.8]
[1737613447748,0.00465039,3220.5,3220.1,40.8]
[1737613448041,0.62142,3220.2,3220.1,40.8]
[1737613448233,0.62141,3220.3,3220.1,40.8]
[1737613448434,0.62139,3220.4,3220.2,3.82922]
[1737613448634,0.62138,3220.4,3220.2,3.82921]
[1737613448834,0.62602039,3220.5,3220.2,3.82921]
[1737613449635,0.62138,3220.4,3220.2,3.82921]
[1737613450037,0.00465039,3220.5,3220.2,3.82921]
[1737613450241,0.00465039,3220.5,3220.2,3.2078]
[1737613450438,0.00465039,3220.5,3220.4,0.62138]
[1737613454943,0.00465039,3220.5,3220.3,0.62139]
[1737613455949,0.62601039,3220.5,3220.3,0.62139]
[1737613457038,0.00465039,3220.5,3220.4,3.2078]
[1737613457243,0.00465039,3220.5,3220.4,3.82918]
[1737613459549,0.62601039,3220.5,3220.4,3.2078]
[1737613460142,0.62601039,3220.5,3220.4,3.82918]
[1737613460550,0.00465039,3220.5,3220.4,3.82918]
[1737613460853,0.62601039,3220.5,3220.4,3.82918]
[1737613464152,0.00465039,3220.5,3220.4,3.82918]
[1737613464953,0.57025039,3220.5,3220.4,3.82918]
[1737613465653,1.13425039,3220.5,3220.4,3.82918]
[1737613466049,1.13425039,3220.5,3220.4,44.62918]
[1737613466249,1.13425039,3220.5,3220.4,47.0780072]
[1737613466250,0.00465039,3220.5,3220.4,47.0780072]
[1737613466448,0.5391,3220.9,3220.8,0.6213]
[1737613467654,1.16038,3220.9,3220.8,0.6213]
[1737613467844,0.5391,3220.9,3220.8,0.6213]
[1737613468353,1.16039,3220.9,3220.8,0.6213]
[1737613469051,1.16039,3220.9,3220.7,0.62131]
[1737613469254,1.42511089,3220.9,3220.7,0.62131]
[1737613469449,0.80382089,3220.9,3220.8,3.8291]
[1737613470057,1.42510089,3220.9,3220.8,3.8291]
[1737613471449,0.80382089,3220.9,3220.8,3.8291]
[1737613472659,0.5391,3220.9,3220.8,3.8291]
[1737613473257,0.5391,3220.9,3220.8,44.6291]
[1737613487861,1.1077,3221.0,3220.8,44.0078]
[1737613488058,1.1077,3221.0,3220.9,1.77931749]
[1737613489458,0.49304244,3221.3,3220.9,2.93735498]
[1737613489664,0.49304244,3221.3,3221.2,4.98705749]
[1737613490057,0.62112,3221.8,3221.7,0.62113]
[1737613490257,0.62112,3221.8,3221.7,3.82893]
[1737613490458,0.88584089,3221.8,3221.7,3.82893]
[1737613490758,0.88584089,3221.8,3221.7,44.62893]
[1737613492062,0.62111,3221.8,3221.7,45.78696749]
[1737613493571,1.6455,3222.1,3221.7,45.78696749]
[1737613493866,0.88582089,3221.9,3221.7,45.16583749]
[1737613494063,0.88582089,3221.9,3221.8,0.62111]
[1737613494671,0.88582089,3221.9,3221.7,45.78695749]
[1737613495076,1.6455,3222.1,3221.7,45.16583749]
[1737613495264,1.6455,3222.1,3221.8,0.62109]
[1737613495265,0.26472089,3221.9,3221.8,0.62109]
[1737613495460,0.26472089,3221.9,3221.8,1.15803749]
[1737613495665,1.6455,3222.1,3221.8,1.15803749]
[1737613495872,2.26655,3222.1,3222.0,1.15803749]
[1737613496369,2.53127089,3222.1,3222.0,1.15803749]
[1737613498665,1.91022089,3222.1,3222.0,1.15803749]
[1737613498971,0.5499,3222.1,3222.0,6.14494498]
[1737613499173,0.5571,3222.3,3222.2,0.62103]
[1737613499370,0.61789811,3222.3,3222.2,1.77906749]
[1737613499566,0.61789811,3222.3,3222.2,42.57906749]
[1737613502470,0.4190514,3222.5,3222.2,41.95803749]
[1737613502667,0.4190514,3222.5,3222.4,4.98682749]
[1737613503375,0.62089,3223.0,3222.5,0.62097]
[1737613503571,1.6601,3222.9,3222.7,0.62092]
[1737613503771,0.88564089,3222.8,3222.6,0.62094]
[1737613503971,0.26472089,3222.8,3222.7,0.62093]
[1737613504373,0.26472089,3222.8,3222.7,41.42093]
[1737613505678,0.83042089,3222.8,3222.7,41.42093]
[1737613506572,1.45134089,3222.8,3222.7,40.8]
[1737613506778,1.45134089,3222.8,3222.6,0.62095]
[1737613507379,0.83042089,3222.8,3222.6,0.62095]
[1737613507780,0.83042089,3222.8,3222.7,40.8]
[1737613508373,0.83042089,3222.8,3222.7,41.42094]
[1737613508577,1.45134089,3222.8,3222.7,40.8]
[1737613509082,0.83042089,3222.8,3222.7,41.42094]
[1737613509685,1.45134089,3222.8,3222.7,40.8]
[1737613512887,1.50039372,3222.8,3222.7,40.8]
[1737613513390,1.45134089,3222.8,3222.7,40.8]
[1737613513892,1.50039332,3222.8,3222.7,40.8]
[1737613514091,1.45134089,3222.8,3222.7,40.8]
[1737613514791,4.40134089,3222.8,3222.7,40.8]
[1737613515593,3.5157,3222.8,3222.7,40.8]
[1737613516891,3.5157,3222.8,3222.7,41.42094]
[1737613517692,2.95,3222.8,3222.7,41.42094]
[1737613520796,0.5512,3223.4,3222.7,40.8]
[1737613520995,1.14084,3223.3,3223.2,3.2078]
[1737613521404,0.6209,3222.9,3222.8,3.2078]
[1737613521890,0.52,3223.3,3222.8,3.82872]
[1737613522198,0.26472089,3223.1,3223.0,0.62088]
[1737613522390,0.26472089,3223.1,3223.0,3.82868]
[1737613522792,0.26472089,3223.1,3223.0,44.62868]
[1737613523096,1.14083,3223.3,3223.1,0.62085]
[1737613523292,1.0636,3223.4,3223.2,2.443247]
[1737613523499,1.32832089,3223.4,3223.3,0.62082]
[1737613523891,0.552,3223.7,3223.2,2.443247]
[1737613524091,0.546,3223.6,3223.4,3.2078]
[1737613524393,0.62078,3223.5,3223.4,3.2078]
[1737613524596,0.88550089,3223.5,3223.4,3.2078]
[1737613527894,0.26472089,3223.5,3223.0,44.0078]
[1737613528090,0.88558089,3223.1,3223.0,44.0078]
[1737613530099,0.26006525,3222.2,3220.9,3.2078]
[1737613530300,0.88126525,3221.4,3221.0,0.62125]
[1737613530503,0.26006525,3221.3,3221.2,40.8]
[1737613530696,0.80066525,3221.3,3221.2,40.8]
[1737613531095,0.5406,3221.3,3221.2,41.42123]
[1737613531698,0.00463127,3221.6,3221.2,40.8]
[1737613531897,0.26006525,3221.4,3221.3,0.6212]
[1737613534503,0.26006525,3221.4,3221.2,41.42121]
[1737613534703,0.26006525,3221.4,3221.2,40.8]
[1737613534907,0.88125525,3221.4,3221.2,40.8]
[1737613535102,0.26006525,3221.4,3221.2,40.8]
[1737613535301,0.26006525,3221.4,3221.2,41.42122]
[1737613535605,0.00463127,3221.6,3221.5,0.62117]
[1737613536006,0.26469652,3221.6,3221.5,41.42117]
[1737613536204,0.26469652,3221.6,3221.5,40.8]
[1737613539503,0.00463127,3221.6,3221.5,40.8]
[1737613539912,0.62578127,3221.6,3221.5,40.8]
[1737613540705,0.00463127,3221.6,3221.5,40.8]
[1737613541705,0.00463127,3221.6,3221.5,41.42117]
[1737613545818,0.00463127,3221.6,3221.5,41.67147078]
[1737613547215,0.00463127,3221.6,3221.4,1.18287]
[1737613547415,0.00463127,3221.6,3221.5,0.62117]
[1737613547628,0.00463127,3221.6,3221.5,41.42117]
[1737613551729,1.18398,3222.0,3221.8,0.6211]
[1737613551919,1.44404525,3222.0,3221.8,0.6211]
[1737613552119,0.82296525,3222.0,3221.5,40.8]
[1737613552324,0.82296525,3222.0,3221.9,0.62109]
[1737613553032,1.44403525,3222.0,3221.8,0.6211]
[1737613553234,0.82296525,3222.0,3221.9,0.62109]
[1737613555829,3.7515,3222.3,3222.2,0.62104]
[1737613556028,0.26006525,3222.2,3222.1,0.62105]
[1737613556426,0.26006525,3222.2,3222.1,41.42105]
[1737613558930,0.5284,3222.3,3222.2,0.62104]
[1737613559130,0.78846525,3222.3,3222.2,0.62104]
[1737613560334,1.40948525,3222.3,3222.1,41.42104]
[1737613560533,0.5218,3222.2,3222.1,41.42104]
[1737613561930,0.5218,3222.2,3222.1,44.62884]
[1737613562134,0.5284,3222.3,3222.2,0.62103]
[1737613567041,0.78846525,3222.3,3222.2,0.62103]
[1737613567738,0.78846525,3222.3,3222.1,44.62885]
[1737613567739,0.62103,3222.2,3222.1,44.62885]
[1737613567940,0.62103,3222.2,3222.1,44.0078]
[1737613567941,0.88109525,3222.2,3222.1,44.0078]
[1737613569943,0.88109525,3222.2,3222.1,40.8]
[1737613570142,0.26006525,3222.2,3222.1,41.42105]
[1737613570336,0.5284,3222.3,3222.2,0.62103]
[1737613570737,0.5284,3222.3,3222.2,1.18423]
[1737613571139,0.5284,3222.3,3222.2,41.98423]
[1737613571540,1.40948525,3222.3,3222.2,40.8]
[1737613571739,0.78846525,3222.3,3222.2,41.42103]
[1737613573442,0.5284,3222.3,3222.2,41.42103]
[1737613573744,0.26006525,3222.5,3222.2,40.8]
[1737613573938,0.62086,3223.2,3223.0,0.62087]
[1737613574136,5.651047,3223.6,3223.0,0.62087]
[1737613574137,0.5375,3223.1,3223.0,0.62087]
[1737613574342,0.79756525,3223.1,3223.0,0.62087]
[1737613574545,0.79756525,3223.1,3223.0,41.42087]
[1737613574744,0.62075,3223.7,3223.5,0.62078]
[1737613574934,2.443247,3223.9,3223.0,41.6565]
[1737613574935,0.26006525,3223.4,3223.0,41.6565]
[1737613575538,0.26006525,3223.4,3223.2,0.62083]
[1737613575745,0.62079,3223.5,3223.2,0.62083]
[1737613576043,0.26006525,3223.3,3223.2,0.62083]
[1737613578646,0.88089525,3223.3,3223.1,0.62085]
[1737613578848,0.26006525,3223.2,3223.1,0.62085]
[1737613579539,0.5195,3223.4,3223.0,41.315]
[1737613579843,0.77956525,3223.4,3223.3,0.62082]
[1737613580047,0.5552,3223.8,3223.1,0.5571]
[1737613580248,0.26006525,3223.7,3223.6,0.62077]
[1737613580447,0.26006525,3223.7,3223.6,41.42077]
[1737613582649,0.5412,3223.9,3223.6,40.8]
[1737613582852,0.62056,3224.7,3223.9,2.17249]
[1737613583040,0.26006525,3224.3,3224.2,0.62065]
[1737613583240,4.069547,3224.8,3224.3,0.62063]
[1737613583241,0.26006525,3224.4,3224.3,0.62063]
[1737613583439,0.26006525,3224.6,3224.3,40.8]
[1737613583640,0.26006525,3224.6,3224.5,0.62059]
[1737613584352,0.26006525,3224.6,3224.5,41.42059]
[1737613585148,1.1008,3224.8,3224.7,0.62055]
[1737613585449,3.2078,3225.2,3225.1,0.62048]
[1737613586044,3.2078,3225.2,3225.1,41.42048]
[1737613586447,0.551,3225.3,3225.1,41.42048]
[1737613586448,0.551,3225.3,3225.2,0.62046]
[1737613586849,3.2078,3225.8,3225.6,0.62037]
[1737613587050,0.5595,3225.7,3225.6,0.62037]
[1737613587353,0.5595,3225.7,3225.1,40.8]
[1737613587354,0.81956525,3225.7,3225.5,0.62039]
[1737613587551,0.26006525,3225.6,3225.5,0.62039]
[1737613588253,0.26006525,3225.6,3225.4,0.6204]
[1737613588555,0.26006525,3225.5,3225.4,0.6204]
[1737613589846,0.26006525,3225.5,3225.4,0.62042]
[1737613591150,0.26006525,3225.5,3225.1,40.8]
[1737613591357,0.26006525,3225.3,3225.2,0.62046]
[1737613592648,0.26006525,3225.3,3225.1,40.8]
[1737613592850,0.26006525,3225.2,3225.1,41.42048]
[1737613594057,0.88052525,3225.2,3225.1,40.8]
[1737613597956,6.79269364,3225.2,3224.6,3.2078]
[1737613598155,0.26006525,3224.7,3224.6,3.82837]
[1737613598661,0.26006525,3224.7,3224.6,44.62837]
[1737613600064,0.26006525,3224.7,3224.6,41.42057]
[1737613600754,0.5999,3225.0,3224.6,40.8]
[1737613600956,1.22041,3225.0,3224.8,0.62053]
[1737613601366,0.26006525,3224.9,3224.8,0.62053]
[1737613601569,0.85996525,3225.0,3224.9,0.62052]
[1737613602362,0.85996525,3225.0,3224.9,41.42052]
[1737613603368,0.85996525,3225.0,3224.9,40.8]
[1737613603566,1.48046525,3225.0,3224.9,40.8]
[1737613604657,0.85996525,3225.0,3224.9,41.42052]
[1737613605067,2.41784271,3225.2,3225.1,0.62048]
[1737613605258,0.26006525,3225.1,3225.0,1.20119]
[1737613607360,2.41784271,3225.2,3225.1,0.62048]
[1737613607568,2.67790796,3225.2,3225.1,0.62048]
[1737613608160,2.67790796,3225.2,3225.1,41.42048]
[1737613609265,3.29836796,3225.2,3225.1,40.8]
[1737613609870,0.88052525,3225.2,3225.1,40.8]
[1737613611773,0.26006525,3225.2,3224.6,3.7798]
[1737613611975,0.62052,3224.9,3224.7,0.62055]
[1737613612170,0.26006525,3224.7,3224.6,3.7798]
[1737613612368,0.26006525,3224.7,3224.6,45.20037]
[1737613615071,0.62052,3224.9,3224.6,44.5798]
[1737613615268,0.62052,3224.9,3224.6,45.20038]
[1737613615269,0.26006525,3224.7,3224.6,45.20038]
[1737613618278,0.85146525,3224.7,3224.6,45.20038]
[1737613618783,1.47202525,3224.7,3224.6,40.8]
[1737613619073,2.67532525,3224.7,3224.6,40.8]
[1737613619284,0.26006525,3224.7,3224.6,44.62838]
[1737613620476,0.88062525,3224.7,3224.6,44.0078]
[1737613620678,0.26006525,3224.7,3224.6,44.62838]
[1737613621978,0.5784,3225.1,3224.6,44.62838]
[1737613622172,0.26006525,3224.9,3224.8,0.62054]
[1737613622473,0.26006525,3224.9,3224.8,3.82834]
[1737613622675,0.26006525,3224.9,3224.8,45.06683528]
[1737613622877,2.443247,3225.7,3224.8,44.44629528]
[1737613623179,0.26006525,3225.2,3225.1,0.62048]
[1737613627385,0.26006525,3225.2,3224.9,1.7393]
[1737613627386,0.62049,3225.1,3224.9,1.20041]
[1737613627578,0.86986525,3225.0,3224.9,1.20041]
[1737613628783,0.26006525,3225.0,3224.9,1.20041]
[1737613632278,0.62043,3225.4,3225.2,0.62046]
[1737613632678,0.26006525,3225.3,3224.9,0.5799]
[1737613632879,0.62044,3225.3,3225.1,0.62047]
[1737613633288,0.26006525,3225.2,3225.1,0.62047]
[1737613634080,0.62048,3225.1,3225.0,0.62049]
[1737613634378,0.26006525,3224.9,3224.8,44.62834]
[1737613635086,0.83186525,3224.9,3224.8,44.62834]
[1737613635785,0.83186525,3224.9,3224.8,44.0078]
[1737613636083,0.83186525,3224.9,3224.8,44.62834]
[1737613639087,1.41516525,3224.9,3224.8,44.62834]
[1737613639489,0.83186525,3224.9,3224.8,44.62834]
[1737613639987,0.83186525,3224.9,3224.8,44.0078]
[1737613640179,1.45238525,3224.9,3224.8,44.0078]
[1737613641177,0.83186525,3224.9,3224.8,44.62834]
[1737613642482,0.5878,3225.3,3224.8,44.0078]
[1737613642683,0.26006525,3225.1,3224.8,3.2078]
[1737613642880,0.26006525,3225.0,3224.9,0.5743]
[1737613643082,0.26006525,3224.9,3224.8,3.82834]
[1737613643278,0.26006525,3225.0,3224.8,3.2078]